[Event "CRO Team Cup 2019"]
[Site "Losinj"]
[Date "2019.05.18"]
[Round "5.19"]
[White "Blazeka, Matej"]
[Black "Jelcic, Marko"]
[Result "1-0"]
[ECO "D00"]
[WhiteElo "2357"]
[BlackElo "2109"]
[Annotator "NA"]
[PlyCount "79"]
[EventDate "2019.05.15"]
[EventType "team-tourn"]
[EventCountry "CRO"]
[SourceTitle "playchess.com"]
[Source "ChessBase"]
[SourceQuality "1"]
[TimeControl "40/5400+30:1800+30"]

1. d4 {[%emt 0:01:30]} d5 {[%emt 0:00:30]} 2. Nc3 {[%emt 0:00:30]} Nf6 {[%emt 0:00:30]} 3. Bf4 {[%emt 0:00:30]} c6 {[%emt 0:00:30]} 4. e3 {[%emt 0:00:30]} Bf5 {[%emt 0:00:30]} 5. f3 {[%emt 0:00:30]} Nbd7 {[%emt 0:04:30]} 6. g4 {[%emt 0:00:30]} Bg6 {[%emt 0:00:30]} 7. h4 {[%emt 0:00:30]} h6 {[%emt 0:00:30]} 8. h5 {[%emt 0:05:30]} Bh7 {[%emt 0:01:30]} 9. Bd3 {[%emt 0:00:30]} Bxd3 {[%emt 0:02:30]} 10. cxd3 {[%emt 0:02:30]} Qb6 {[%emt 0:01:30]} 11. Qd2 {[%emt 0:04:30]} e6 {[%emt 0:01:30]} 12. Nge2 {[%emt 0:00:30]} c5 {[%emt 0:10:30]} 13. dxc5 {[%emt 0:03:30]} Nxc5 {[%emt 0:06:30]} 14. O-O {[%emt 0:01:30]} Bd6 {[%emt 0:03:30]} 15. Bxd6 {[%emt 0:04:30]} Qxd6 {[%emt 0:00:30]} 16. d4 {[%emt 0:00:30]} Na6 {[%emt 0:03:30]} 17. Nf4 {[%emt 0:08:30]} O-O {[%emt 0:02:30]} 18. Rad1 {[%emt 0:03:30]} Nc7 {[%emt 0:08:30]} 19. Rf2 {[%emt 0:05:30]} Rfe8 {[%emt 0:11:30]} 20. Nd3 {[%emt 0:02:30]} Rac8 {[%emt 0:04:30]} 21. Kg2 {[%emt 0:01:30]} Re7 {[%emt 0:04:30]} 22. Rc1 {[%emt 0:00:30]} Qd8 {[%emt 0:01:30]} 23. Qd1 {[%emt 0:11:30]} Nce8 {[%emt 0:00:30]} 24. Rfc2 {[%emt 0:01:30]} Nd6 {[%emt 0:02:30]} 25. b3 {[%emt 0:00:30]} Rec7 {[%emt 0:00:30]} 26. Na4 {[%emt 0:02:30]} b6 {[%emt 0:04:30]} 27. Ne5 {[%emt 0:05:30]} Nd7 {[%emt 0:01:30]} 28. Nc6 {[%emt 0:01:30]} Qg5 {[%emt 0:07:34]} 29. Ne7+ {[%emt 0:00:30]} Qxe7 {[%emt 0:00:14]} 30. Rxc7 {[%emt 0:00:30]} Rxc7 {[%emt 0:00:31]} 31. Rxc7 {[%emt 0:00:00]} Nb5 {[%emt 0:00:00]} 32. Rc8+ {[%emt 0:00:00]} Kh7 {[%emt 0:00:00]} 33. Qd3+ {[%emt 0:00:30]} f5 {[%emt 0:00:00]} 34. Qxb5 {[%emt 0:00:30]} Qg5 {[%emt 0:00:17]} 35. Qd3 {[%emt 0:06:30]} Nf6 {[%emt 0:00:10]} 36. Nc3 {[%emt 0:06:30]} Nxh5 {[%emt 0:01:56]} 37. Nxd5 {[%emt 0:00:30]} g6 {[%emt 0:00:26]} 38. Nf4 {[%emt 0:03:00]} Nxf4+ {[%emt 0:01:33]} 39. exf4 {[%emt 0:00:05]} Qxf4 {[%emt 0:00:08]} 40. Qc2 {[%emt 0:00:15]} 1-0

[Event "CRO Team Cup 2019"]
[Site "Losinj"]
[Date "2019.05.18"]
[Round "5.20"]
[White "Ivankovic, Ivo"]
[Black "Tomic, Stjepan"]
[Result "0-1"]
[ECO "B13"]
[WhiteElo "2081"]
[BlackElo "1876"]
[Annotator "NA"]
[PlyCount "92"]
[EventDate "2019.05.15"]
[EventType "team-tourn"]
[EventCountry "CRO"]
[SourceTitle "playchess.com"]
[Source "ChessBase"]
[SourceQuality "1"]
[TimeControl "40/5400+30:1800+30"]

1. c4 {[%emt 0:00:30]} c6 {[%emt 0:00:30]} 2. e4 {[%emt 0:00:00]} d5 {[%emt 0:00:00]} 3. exd5 {[%emt 0:01:00]} cxd5 {[%emt 0:00:00]} 4. d4 {[%emt 0:00:00]} Nf6 {[%emt 0:00:00]} 5. Nc3 {[%emt 0:00:00]} Nc6 {[%emt 0:00:00]} 6. Nf3 {[%emt 0:00:00]} Bg4 {[%emt 0:00:30]} 7. cxd5 {[%emt 0:00:00]} Nxd5 {[%emt 0:00:00]} 8. Qb3 {[%emt 0:00:30]} Bxf3 {[%emt 0:00:00]} 9. gxf3 {[%emt 0:00:30]} e6 {[%emt 0:00:00]} 10. Qxb7 {[%emt 0:00:30]} Nxd4 {[%emt 0:00:00]} 11. Bb5+ {[%emt 0:00:30]} Nxb5 {[%emt 0:00:30]} 12. Qc6+ {[%emt 0:00:30]} Ke7 {[%emt 0:00:00]} 13. Qxb5 {[%emt 0:00:30]} Qd7 {[%emt 0:04:00]} 14. Qxd7+ {[%emt 0:07:30]} Kxd7 {[%emt 0:00:30]} 15. Nxd5 {[%emt 0:00:30]} exd5 {[%emt 0:00:00]} 16. O-O {[%emt 0:03:30]} Bc5 {[%emt 0:01:00]} 17. Be3 {[%emt 0:01:30]} Bxe3 {[%emt 0:06:30]} 18. fxe3 {[%emt 0:00:30]} Rac8 {[%emt 0:01:30]} 19. Rad1 {[%emt 0:02:30]} Ke6 {[%emt 0:00:00]} 20. Rf2 {[%emt 0:01:30]} Rhd8 {[%emt 0:05:00]} 21. Rfd2 {[%emt 0:00:30]} Rc7 {[%emt 0:00:30]} 22. Kf2 {[%emt 0:12:30]} f5 {[%emt 0:06:30]} 23. h4 {[%emt 0:09:30]} g6 {[%emt 0:04:30]} 24. Kg3 {[%emt 0:00:30]} Ke5 {[%emt 0:04:30]} 25. Rd4 {[%emt 0:03:30]} Rc2 {[%emt 0:10:30]} 26. Rb4 {[%emt 0:02:30]} Rdc8 {[%emt 0:03:30]} 27. Rb5 {[%emt 0:10:30]} R8c5 {[%emt 0:00:30]} 28. Rxc5 {[%emt 0:02:30]} Rxc5 {[%emt 0:00:30]} 29. Rd4 {[%emt 0:02:30]} Rb5 {[%emt 0:05:30]} 30. b4 {[%emt 0:01:30]} a5 {[%emt 0:01:30]} 31. a3 {[%emt 0:03:30]} h6 {[%emt 0:04:30]} 32. f4+ {[%emt 0:00:30]} Kf6 {[%emt 0:01:30]} 33. Kf3 {[%emt 0:01:30]} axb4 {[%emt 0:10:30]} 34. axb4 {[%emt 0:00:30]} g5 {[%emt 0:08:30]} 35. hxg5+ {[%emt 0:00:30]} hxg5 {[%emt 0:02:30]} 36. fxg5+ {[%emt 0:00:00]} Kxg5 {[%emt 0:00:30]} 37. Ke2 {[%emt 0:00:00]} Kf6 {[%emt 0:00:30]} 38. Kd3 {[%emt 0:00:30]} Ke6 {[%emt 0:00:30]} 39. Kc3 {[%emt 0:00:00]} Kd6 {[%emt 0:00:30]} 40. Rf4 {[%emt 0:01:00]} Ke5 {[%emt 0:08:13]} 41. Kb3 {[%emt 0:31:30]} Rb8 {[%emt 0:31:57]} 42. Ka4 {[%emt 0:01:30]} Ra8+ {[%emt 0:00:19]} 43. Kb5 {[%emt 0:00:30]} Ra3 {[%emt 0:01:28]} 44. Rf1 {[%emt 0:02:30]} Rxe3 {[%emt 0:01:44]} 45. Rb1 {[%emt 0:00:30]} f4 {[%emt 0:03:07]} 46. Kc6 {[%emt 0:00:30]} f3 {[%emt 0:00:00]} 0-1

[Event "CRO Team Cup 2019"]
[Site "Losinj"]
[Date "2019.05.19"]
[Round "6.14"]
[White "Ascic, Pero"]
[Black "Loncar, Robert"]
[Result "1/2-1/2"]
[ECO "C68"]
[WhiteElo "2324"]
[BlackElo "2407"]
[Annotator "RC"]
[PlyCount "63"]
[EventDate "2019.05.15"]
[EventType "team-tourn"]
[EventCountry "CRO"]
[SourceTitle "playchess.com"]
[Source "ChessBase"]
[SourceQuality "1"]
[TimeControl "40/5400+30:1800+30"]

1. e4 {[%emt 0:00:30]} e5 {[%emt 0:10:30]} 2. Nf3 {[%emt 0:00:30]} Nc6 {[%emt 0:00:30]} 3. Bb5 {[%emt 0:02:30]} a6 {[%emt 0:00:30]} 4. Bxc6 {[%emt 0:00:30]} dxc6 {[%emt 0:00:30]} 5. d4 {[%emt 0:00:30]} exd4 {[%emt 0:00:00]} 6. Qxd4 {[%emt 0:00:00]} Qxd4 {[%emt 0:01:00]} 7. Nxd4 {[%emt 0:01:00]} Bd7 {[%emt 0:00:30]} 8. Be3 {[%emt 0:00:00]} O-O-O {[%emt 0:00:30]} 9. Nc3 {[%emt 0:00:00]} Bb4 {[%emt 0:01:30]} 10. O-O-O {[%emt 0:00:30]} Bxc3 {[%emt 0:01:30]} 11. bxc3 {[%emt 0:00:30]} Re8 {[%emt 0:00:30]} 12. Nf3 {[%emt 0:07:30]} Bg4 {[%emt 0:10:30]} 13. Bd4 {[%emt 0:02:30]} Nf6 {[%emt 0:12:30]} 14. Bxf6 {[%emt 0:07:30]} gxf6 {[%emt 0:01:30]} 15. Rde1 {[%emt 0:02:30]} Bxf3 {[%emt 0:14:30]} 16. gxf3 {[%emt 0:00:00]} Rhg8 {[%emt 0:00:00]} 17. Reg1 {[%emt 0:01:00]} Rg6 {[%emt 0:00:00]} 18. Rg3 {[%emt 0:00:30]} Re5 {[%emt 0:00:00]} 19. Kd2 {[%emt 0:00:30]} Ra5 {[%emt 0:00:00]} 20. Ra1 {[%emt 0:00:30]} Rh5 {[%emt 0:03:30]} 21. Rh1 {[%emt 0:00:30]} Kd7 {[%emt 0:02:30]} 22. Ke3 {[%emt 0:01:30]} Ra5 {[%emt 0:00:30]} 23. Ra1 {[%emt 0:00:30]} Rc5 {[%emt 0:08:30]} 24. Kd4 {[%emt 0:00:30]} Rh5 {[%emt 0:00:30]} 25. Rh1 {[%emt 0:00:00]} f5 {[%emt 0:02:30]} 26. c4 {[%emt 0:18:00]} b6 {[%emt 0:05:30]} 27. h4 {[%emt 0:02:30]} Rgh6 {[%emt 0:02:30]} 28. Rg8 {[%emt 0:08:30]} Rxh4 {[%emt 0:02:12]} 29. Rxh4 {[%emt 0:00:00]} Rxh4 {[%emt 0:00:00]} 30. Ke5 {[%emt 0:13:00]} fxe4 {[%emt 0:02:27]} 31. fxe4 {[%emt 0:00:30]} Ke7 {[%emt 0:04:26]} 32. f4 {[%emt 0:10:30]} 1/2-1/2

[Event "CRO Team Cup 2019"]
[Site "Losinj"]
[Date "2019.05.19"]
[Round "6.15"]
[White "Sale, Srdjan"]
[Black "Filipovic, Marko"]
[Result "1/2-1/2"]
[ECO "B51"]
[WhiteElo "2443"]
[BlackElo "2324"]
[Annotator "RC"]
[PlyCount "118"]
[EventDate "2019.05.15"]
[EventType "team-tourn"]
[EventCountry "CRO"]
[SourceTitle "playchess.com"]
[Source "ChessBase"]
[SourceQuality "1"]
[TimeControl "40/5400+30:1800+30"]

1. e4 {[%emt 0:00:30]} c5 {[%emt 0:00:30]} 2. Nf3 {[%emt 0:00:30]} d6 {[%emt 0:00:00]} 3. Bb5+ {[%emt 0:00:30]} Nd7 {[%emt 0:01:00]} 4. a4 {[%emt 0:00:00]} a6 {[%emt 0:00:30]} 5. Bc4 {[%emt 0:00:00]} e6 {[%emt 0:00:30]} 6. O-O {[%emt 0:00:30]} Ngf6 {[%emt 0:00:30]} 7. Re1 {[%emt 0:01:30]} Be7 {[%emt 0:00:30]} 8. d3 {[%emt 0:00:30]} O-O {[%emt 0:00:30]} 9. a5 {[%emt 0:00:30]} d5 {[%emt 0:14:30]} 10. exd5 {[%emt 0:00:00]} exd5 {[%emt 0:00:30]} 11. Bb3 {[%emt 0:00:00]} Nb8 {[%emt 0:06:30]} 12. Ne5 {[%emt 0:01:30]} Nc6 {[%emt 0:01:30]} 13. Nxc6 {[%emt 0:00:00]} bxc6 {[%emt 0:00:30]} 14. Nc3 {[%emt 0:03:00]} Rb8 {[%emt 0:12:30]} 15. Bd2 {[%emt 0:10:30]} Bd6 {[%emt 0:03:30]} 16. h3 {[%emt 0:02:30]} Bc7 {[%emt 0:10:30]} 17. Ne2 {[%emt 0:08:30]} Nh5 {[%emt 0:10:30]} 18. Ra4 {[%emt 0:01:30]} Qf6 {[%emt 0:15:48]} 19. Nd4 {[%emt 0:05:30]} Nf4 {[%emt 0:10:09]} 20. Nf3 {[%emt 0:01:30]} d4 {[%emt 0:02:04]} 21. Bxf4 {[%emt 0:05:30]} Qxf4 {[%emt 0:00:53]} 22. Qe2 {[%emt 0:04:30]} Rxb3 {[%emt 0:04:08]} 23. cxb3 {[%emt 0:00:30]} Be6 {[%emt 0:00:00]} 24. Qe4 {[%emt 0:02:30]} Bxb3 {[%emt 0:00:55]} 25. Qxf4 {[%emt 0:04:30]} Bxf4 {[%emt 0:00:04]} 26. Ra3 {[%emt 0:00:00]} Be6 {[%emt 0:01:04]} 27. g3 {[%emt 0:03:00]} Bd6 {[%emt 0:00:21]} 28. Ng5 {[%emt 0:00:30]} Bd5 {[%emt 0:00:46]} 29. Ne4 {[%emt 0:00:30]} Be7 {[%emt 0:00:53]} 30. Nd2 {[%emt 0:01:30]} Bg5 {[%emt 0:00:10]} 31. f4 {[%emt 0:01:30]} Bf6 {[%emt 0:00:08]} 32. Nc4 {[%emt 0:00:30]} g5 {[%emt 0:00:23]} 33. f5 {[%emt 0:03:30]} Rd8 {[%emt 0:01:37]} 34. Rb3 {[%emt 0:05:30]} g4 {[%emt 0:00:54]} 35. h4 {[%emt 0:00:30]} h5 {[%emt 0:00:51]} 36. Rb6 {[%emt 0:05:30]} Bxc4 {[%emt 0:00:49]} 37. dxc4 {[%emt 0:00:30]} d3 {[%emt 0:00:10]} 38. Rd1 {[%emt 0:00:30]} d2 {[%emt 0:00:23]} 39. Kf1 {[%emt 0:00:30]} Rd3 {[%emt 0:01:15]} 40. Rxa6 {[%emt 0:08:30]} Bxb2 {[%emt 0:00:30]} 41. Ra8+ {[%emt 0:03:30]} Kg7 {[%emt 0:03:45]} 42. Ke2 {[%emt 0:00:30]} Rxg3 {[%emt 0:02:30]} 43. Rxd2 {[%emt 0:00:30]} Bd4 {[%emt 0:01:30]} 44. a6 {[%emt 0:04:30]} Ra3 {[%emt 0:02:30]} 45. a7 {[%emt 0:01:30]} Kf6 {[%emt 0:03:30]} 46. Kf1 {[%emt 0:08:30]} Kxf5 {[%emt 0:05:54]} 47. Re2 {[%emt 0:00:30]} Kf4 {[%emt 0:02:26]} 48. Re7 {[%emt 0:02:30]} f5 {[%emt 0:01:23]} 49. Rg8 {[%emt 0:07:30]} Ra1+ {[%emt 0:00:58]} 50. Ke2 {[%emt 0:00:30]} Ra2+ {[%emt 0:00:30]} 51. Kd3 {[%emt 0:01:30]} Ra3+ {[%emt 0:00:07]} 52. Kc2 {[%emt 0:00:30]} g3 {[%emt 0:00:31]} 53. a8=Q {[%emt 0:01:30]} Rxa8 {[%emt 0:00:04]} 54. Rxa8 {[%emt 0:00:00]} g2 {[%emt 0:00:09]} 55. Rg8 {[%emt 0:02:00]} g1=Q {[%emt 0:00:32]} 56. Rxg1 {[%emt 0:00:00]} Bxg1 {[%emt 0:00:02]} 57. Rh7 {[%emt 0:01:00]} Bf2 {[%emt 0:02:46]} 58. Rxh5 {[%emt 0:00:30]} Kg4 {[%emt 0:00:14]} 59. Rg5+ {[%emt 0:02:30]} Kf4 {[%emt 0:00:08]} 1/2-1/2

[Event "CRO Team Cup 2019"]
[Site "Losinj"]
[Date "2019.05.19"]
[Round "6.16"]
[White "Vargic, Drago"]
[Black "Medak, Bojan"]
[Result "1/2-1/2"]
[ECO "B08"]
[WhiteElo "2274"]
[BlackElo "2347"]
[Annotator "NA RC"]
[PlyCount "30"]
[EventDate "2019.05.15"]
[EventType "team-tourn"]
[EventCountry "CRO"]
[SourceTitle "playchess.com"]
[Source "ChessBase"]
[SourceQuality "1"]
[TimeControl "40/5400+30:1800+30"]

1. e4 {[%emt 0:00:30]} d6 {[%emt 0:00:30]} 2. d4 {[%emt 0:01:30]} Nf6 {[%emt 0:00:30]} 3. Nc3 {[%emt 0:00:30]} g6 {[%emt 0:00:30]} 4. Nf3 {[%emt 0:03:30]} Bg7 {[%emt 0:01:30]} 5. Be2 {[%emt 0:00:30]} O-O {[%emt 0:01:30]} 6. O-O {[%emt 0:01:30]} Nc6 {[%emt 0:04:30]} 7. h3 {[%emt 0:07:30]} e5 {[%emt 0:03:30]} 8. dxe5 {[%emt 0:02:30]} Nxe5 {[%emt 0:16:30]} 9. Nxe5 {[%emt 0:22:30]} dxe5 {[%emt 0:00:30]} 10. Qxd8 {[%emt 0:00:00]} Rxd8 {[%emt 0:00:00]} 11. Bg5 {[%emt 0:00:00]} c6 {[%emt 0:08:00]} 12. Rfd1 {[%emt 0:03:30]} Be6 $11 {[%emt 0:04:30]} 13. a4 {[%emt 0:03:30]} h6 {[%emt 0:11:30]} 14. Be3 {[%emt 0:01:30]} Rxd1+ {[%emt 0:00:30]} 15. Rxd1 {[%emt 0:00:00]} Bf8 1/2-1/2

[Event "CRO Team Cup 2019"]
[Site "Losinj"]
[Date "2019.05.19"]
[Round "6.17"]
[White "Srbis, Jurica"]
[Black "Janzelj, Tim"]
[Result "1-0"]
[ECO "D37"]
[WhiteElo "2429"]
[BlackElo "2380"]
[Annotator "RC"]
[PlyCount "83"]
[EventDate "2019.05.15"]
[EventType "team-tourn"]
[EventCountry "CRO"]
[SourceTitle "playchess.com"]
[Source "ChessBase"]
[SourceQuality "1"]
[TimeControl "40/5400+30:1800+30"]

1. d4 {[%emt 0:00:30]} Nf6 {[%emt 0:00:30]} 2. Nf3 {[%emt 0:01:30]} d5 {[%emt 0:01:30]} 3. c4 {[%emt 0:01:30]} e6 {[%emt 0:00:30]} 4. e3 {[%emt 0:00:30]} Nbd7 {[%emt 0:08:30]} 5. Nc3 {[%emt 0:10:30]} a6 {[%emt 0:03:30]} 6. Qc2 {[%emt 0:04:30]} Be7 {[%emt 0:10:30]} 7. b3 {[%emt 0:01:30]} b6 {[%emt 0:01:30]} 8. Bd3 {[%emt 0:12:30]} Bb7 {[%emt 0:00:30]} 9. cxd5 {[%emt 0:02:30]} exd5 {[%emt 0:00:30]} 10. O-O {[%emt 0:00:30]} O-O {[%emt 0:00:30]} 11. Ne5 {[%emt 0:00:30]} c5 {[%emt 0:13:30]} 12. Bb2 {[%emt 0:00:30]} Bd6 {[%emt 0:04:30]} 13. f4 {[%emt 0:01:30]} b5 {[%emt 0:02:30]} 14. Bf5 {[%emt 0:08:30]} g6 {[%emt 0:08:30]} 15. Bh3 {[%emt 0:01:30]} c4 {[%emt 0:02:30]} 16. Nd1 {[%emt 0:04:30]} Nb6 {[%emt 0:01:30]} 17. Nf2 {[%emt 0:01:30]} Bc8 {[%emt 0:04:30]} 18. f5 {[%emt 0:01:30]} Qc7 {[%emt 0:01:30]} 19. Nfg4 {[%emt 0:10:30]} Ne4 {[%emt 0:03:30]} 20. fxg6 {[%emt 0:07:30]} fxg6 {[%emt 0:17:37]} 21. Rxf8+ {[%emt 0:05:30]} Bxf8 {[%emt 0:00:30]} 22. Rf1 {[%emt 0:00:30]} Bf5 {[%emt 0:00:17]} 23. Nf6+ {[%emt 0:00:30]} Nxf6 {[%emt 0:00:30]} 24. Bxf5 {[%emt 0:01:30]} Qe7 {[%emt 0:00:30]} 25. Bxg6 {[%emt 0:00:30]} hxg6 {[%emt 0:00:30]} 26. Qxg6+ {[%emt 0:00:30]} Bg7 {[%emt 0:00:30]} 27. Ba3 {[%emt 0:00:30]} Qe6 {[%emt 0:00:30]} 28. Bc5 {[%emt 0:00:30]} Nc8 {[%emt 0:08:11]} 29. h4 {[%emt 0:05:08]} Ne7 {[%emt 0:00:01]} 30. Bxe7 {[%emt 0:00:29]} Qxe7 {[%emt 0:00:01]} 31. h5 {[%emt 0:00:11]} c3 {[%emt 0:03:02]} 32. h6 {[%emt 0:01:11]} Rf8 {[%emt 0:01:29]} 33. hxg7 {[%emt 0:03:21]} Qxg7 {[%emt 0:00:06]} 34. Qf5 {[%emt 0:00:07]} Qh6 {[%emt 0:02:02]} 35. Qe6+ {[%emt 0:03:19]} Kh8 {[%emt 0:00:29]} 36. Ng4 {[%emt 0:02:51]} Qh4 {[%emt 0:00:39]} 37. Qe7 {[%emt 0:02:47]} Qxg4 {[%emt 0:00:33]} 38. Qxf8+ {[%emt 0:00:08]} Ng8 {[%emt 0:00:03]} 39. Kf2 {[%emt 0:01:27]} Qh4+ {[%emt 0:00:22]} 40. Ke2 {[%emt 0:00:09]} Qh2 {[%emt 0:00:55]} 41. Qf3 {[%emt 0:01:22]} Qh7 {[%emt 0:01:13]} 42. Qf5 {[%emt 0:01:30]} 1-0

[Event "CRO Team Cup 2019"]
[Site "Losinj"]
[Date "2019.05.19"]
[Round "6.20"]
[White "Boric, Muhamed"]
[Black "Kovacevic, Veljko"]
[Result "1-0"]
[ECO "D02"]
[WhiteElo "2342"]
[BlackElo "2183"]
[Annotator "NA RC"]
[PlyCount "89"]
[EventDate "2019.05.15"]
[EventType "team-tourn"]
[EventCountry "CRO"]
[SourceTitle "playchess.com"]
[Source "ChessBase"]
[SourceQuality "1"]
[TimeControl "40/5400+30:1800+30"]

1. d4 {[%emt 0:00:30]} Nf6 {[%emt 0:00:30]} 2. Nf3 {[%emt 0:00:30]} c5 {[%emt 0:01:30]} 3. c3 {[%emt 0:04:30]} e6 {[%emt 0:02:30]} 4. Bf4 {[%emt 0:01:30]} Nc6 {[%emt 0:01:30]} 5. e3 {[%emt 0:00:30]} d5 {[%emt 0:05:30]} 6. Nbd2 {[%emt 0:00:30]} Bd6 {[%emt 0:09:30]} 7. Bg3 {[%emt 0:00:30]} Bxg3 {[%emt 0:07:30]} 8. hxg3 {[%emt 0:00:30]} Qd6 {[%emt 0:00:30]} 9. a3 {[%emt 0:29:30] D02: 1 d4 d5 2 Nf3 sidelines, including 2...Nf6 3 g3 and 2...Nf6 3 Bf4} (9. Bb5 Bd7 10. Bxc6 Bxc6 11. Ne5 Qc7 12. Qf3 h6 13. Qf4 Qe7 14. g4 Nh7 15. Qg3 Rg8 16. O-O Nf6 17. Rac1 {1-0 (29) Carlsen,M (2857)-Ghaem Maghami,E (2566) Baku 2016}) 9... a6 $146 {[%emt 0:01:30]} ({Predecessor:} 9... e5 10. dxe5 Nxe5 11. Nxe5 Qxe5 12. Bb5+ Ke7 13. Qa4 {½-½ (13) Malaniuk,V (2540)-Fominyh,A (2530) Alushta 1992}) 10. Bd3 {[%emt 0:06:30]} e5 {[%emt 0:05:30]} 11. dxe5 {[%emt 0:00:30]} Nxe5 {[%emt 0:00:00]} 12. Nxe5 {[%emt 0:00:00]} Qxe5 {[%emt 0:00:00]} 13. Qa4+ {[%emt 0:01:00]} Bd7 {[%emt 0:00:30]} 14. Qf4 {[%emt 0:00:00]} Qxf4 {[%emt 0:21:30]} 15. gxf4 {[%emt 0:00:00]} Bb5 {[%emt 0:06:30]} 16. Ke2 {[%emt 0:02:30]} Bxd3+ {[%emt 0:01:30]} 17. Kxd3 {[%emt 0:01:30]} O-O {[%emt 0:00:30]} 18. Nf3 {[%emt 0:01:30]} Ne4 {[%emt 0:00:30]} 19. Ke2 {[%emt 0:00:30]} Rad8 {[%emt 0:02:30]} 20. Rad1 {[%emt 0:04:30]} Rd6 {[%emt 0:01:30]} 21. Nd2 {[%emt 0:00:00]} Rfd8 {[%emt 0:00:30]} 22. Nxe4 {[%emt 0:06:00]} dxe4 {[%emt 0:00:30]} 23. Rxd6 {[%emt 0:01:30]} Rxd6 {[%emt 0:00:30]} 24. Rh5 {[%emt 0:00:00]} Rb6 {[%emt 0:07:30]} 25. b4 {[%emt 0:00:00]} cxb4 {[%emt 0:00:00]} 26. axb4 {[%emt 0:00:30]} f6 {[%emt 0:15:30]} 27. Rc5 {[%emt 0:03:30]} Kf7 {[%emt 0:03:22]} 28. Rc7+ {[%emt 0:00:00]} Kg6 {[%emt 0:00:13]} 29. f3 {[%emt 0:00:00]} exf3+ {[%emt 0:01:13]} 30. Kxf3 {[%emt 0:00:30]} f5 {[%emt 0:01:27]} 31. g4 {[%emt 0:10:30]} fxg4+ {[%emt 0:00:17]} 32. Kxg4 {[%emt 0:00:30]} h5+ {[%emt 0:01:58]} 33. Kf3 {[%emt 0:00:30]} Kf6 {[%emt 0:00:40]} 34. e4 {[%emt 0:03:30]} g5 {[%emt 0:01:06]} 35. Rc5 {[%emt 0:01:30]} g4+ {[%emt 0:00:39]} 36. Kg3 {[%emt 0:00:00]} Rc6 {[%emt 0:00:56]} 37. Rxh5 {[%emt 0:02:00]} Rxc3+ {[%emt 0:00:01]} 38. Kxg4 {[%emt 0:00:00]} Rc4 {[%emt 0:00:08]} 39. e5+ {[%emt 0:07:27]} Kg6 {[%emt 0:00:28]} 40. Rg5+ {[%emt 0:00:27]} Kf7 {[%emt 0:00:16]} 41. Kf5 {[%emt 0:30:38]} Rxb4 {[%emt 0:30:53]} 42. e6+ $18 {[%emt 0:00:00]} Ke7 {[%emt 0:00:00]} 43. Rg7+ {[%emt 0:00:00]} Kd6 {[%emt 0:00:00]} 44. Rd7+ {[%emt 0:00:00]} Kc6 {[%emt 0:00:00]} 45. Rd1 {[%emt 0:00:00]} 1-0